bitfinex-derivatives/quotes_BNBF0:USTF0_20251027
["timestamp","ask_amount","ask_price","bid_price","bid_amount"]
[1761565104634,2.1456881,1164.9,1159.1,0.54352006]
[1761565104831,2.1456881,1164.9,1159.2,0.54352006]
[1761565105034,0.14984854,1162.5,1159.3,0.54352006]
[1761565105337,2.1456881,1163.3,1159.4,0.54352006]
[1761565105635,0.1498466,1162.4,1159.5,0.54352006]
[1761565105834,0.1498466,1162.4,1159.1,0.64045595]
[1761565106031,0.1498466,1162.4,1159.2,0.54386762]
[1761565106236,0.1498466,1162.4,1159.3,0.54386762]
[1761565106432,0.1498466,1162.4,1159.4,0.54386762]
[1761565106735,0.1498466,1162.4,1159.5,0.54386762]
[1761565106934,0.1498466,1162.4,1159.1,0.64045595]
[1761565107132,0.1498466,1162.4,1159.2,0.54392143]
[1761565107336,0.1498466,1162.4,1159.3,0.54392143]
[1761565107531,0.1498466,1162.4,1159.4,0.54392143]
[1761565107736,0.1498466,1162.4,1159.5,0.54392143]
[1761565107936,0.1498466,1162.4,1158.8,0.64045595]
[1761565108136,0.1498466,1162.4,1158.9,0.54408459]
[1761565108333,0.1498466,1162.4,1159.0,0.54408459]
[1761565108537,0.1498466,1162.4,1159.1,0.54408459]
[1761565108735,0.1498466,1162.4,1159.2,0.54408459]
[1761565108937,0.1498466,1162.4,1159.3,0.54408459]
[1761565109140,0.1498466,1162.4,1158.8,0.64045595]
[1761565109434,0.1498466,1162.4,1158.9,0.54415383]
[1761565109634,0.1498466,1162.4,1159.0,0.54415383]
[1761565109837,0.1498466,1162.4,1159.1,0.54415383]
[1761565110038,0.1498466,1162.4,1159.2,0.54415383]
[1761565110235,0.1498466,1162.4,1159.3,0.54415383]
[1761565110535,0.1498466,1162.4,1159.4,0.54415383]
[1761565110733,0.1498466,1162.4,1158.8,0.64045595]
[1761565110934,0.1498466,1162.4,1158.9,0.54395914]
[1761565111137,0.1498466,1162.4,1159.0,0.54395914]
[1761565111335,0.1498466,1162.4,1158.8,0.64045595]
[1761565111336,0.1498466,1162.4,1159.1,0.54395914]
[1761565111535,0.1498466,1162.4,1159.2,0.54395914]
[1761565111838,0.1498466,1162.4,1159.3,0.54395914]
[1761565112038,0.1498466,1162.4,1159.4,0.54395914]
[1761565112237,0.1498466,1162.4,1158.8,0.64045595]
[1761565112439,0.1498466,1162.4,1158.9,0.54403534]
[1761565112740,0.1498466,1162.4,1159.0,0.54403534]
[1761565112936,0.1498466,1162.4,1159.1,0.54403534]
[1761565113236,0.1498466,1162.4,1159.2,0.54403534]
[1761565113440,0.1498466,1162.4,1159.3,0.54403534]
[1761565113638,0.1498466,1162.4,1159.4,0.54403534]
[1761565113842,0.1498466,1162.4,1158.8,0.64045595]
[1761565114041,0.1498466,1162.4,1158.9,0.54425849]
[1761565114238,0.1498466,1162.4,1159.0,0.54425849]
[1761565114438,0.1498466,1162.4,1159.1,0.54425849]
[1761565114639,0.1498466,1162.4,1159.2,0.54425849]
[1761565114940,0.1498466,1162.4,1159.3,0.54425849]
[1761565115138,0.1498466,1162.4,1159.4,0.54425849]
[1761565115342,0.1498466,1162.4,1158.8,0.64045595]
[1761565115643,0.1498466,1162.4,1158.9,1.18502955]
[1761565115940,0.1498466,1162.4,1159.0,0.5445736]
[1761565117039,2.1456881,1163.0,1159.0,0.5445736]
[1761565117243,2.1456881,1164.4,1159.1,0.5445736]
[1761565117442,0.14989372,1162.8,1159.2,1.18502955]
[1761565117643,2.1456881,1164.2,1159.3,0.5445736]
[1761565117840,0.14983047,1163.0,1159.5,0.64045595]
[1761565118144,0.14983047,1163.0,1159.6,0.5445736]
[1761565118341,0.14983047,1163.0,1159.7,0.5445736]
[1761565118545,0.14983047,1163.0,1159.8,0.5445736]
[1761565118744,0.14983047,1163.0,1159.9,0.5445736]
[1761565119044,0.14983047,1163.0,1160.0,0.5445736]
[1761565119345,0.14983047,1163.0,1159.5,0.64045595]
[1761565119541,0.14983047,1163.0,1159.6,0.54405285]
[1761565119744,0.14983047,1163.0,1159.7,0.54405285]
[1761565120040,0.14983047,1163.0,1159.8,0.54405285]
[1761565120240,0.14983047,1163.0,1159.9,0.54405285]
[1761565120439,0.14983047,1163.0,1160.0,0.54405285]
[1761565120640,0.14983047,1163.0,1159.5,0.64045595]
[1761565120842,0.14983047,1163.0,1159.6,0.54417746]
[1761565121045,0.14983047,1163.0,1159.7,0.54417746]
[1761565121243,0.14983047,1163.0,1159.8,0.54417746]
[1761565121441,0.14983047,1163.0,1159.9,0.54417746]
[1761565121742,0.14983047,1163.0,1160.0,0.54417746]
[1761565122044,0.14983047,1163.0,1159.4,0.64045595]
[1761565122243,0.14983047,1163.0,1159.5,0.54355745]
[1761565122541,0.14983047,1163.0,1159.6,0.54355745]
[1761565122844,0.14983047,1163.0,1159.7,0.54355745]
[1761565123041,0.14983047,1163.0,1159.8,0.54355745]
[1761565123239,0.14983047,1163.0,1159.9,0.54355745]
[1761565123446,0.14983047,1163.0,1159.5,0.64045595]
[1761565123640,0.14983047,1163.0,1159.6,0.54347944]
[1761565123841,0.14983047,1163.0,1159.7,0.54347944]
[1761565124042,0.14983047,1163.0,1159.3,0.64045595]
[1761565124244,0.14983047,1163.0,1159.4,0.54380313]
[1761565124446,0.14983047,1163.0,1159.5,0.54380313]
[1761565124641,0.14983047,1163.0,1159.6,0.54380313]
[1761565124843,0.14983047,1163.0,1159.7,1.71780313]
[1761565125043,0.14983047,1163.0,1159.8,0.54380313]
[1761565125242,0.14983047,1163.0,1159.9,0.54380313]
[1761565125447,0.14983047,1163.0,1159.7,1.174]
[1761565125646,0.14983047,1163.0,1159.8,0.54373488]
[1761565125847,0.14983047,1163.0,1159.9,0.54373488]
[1761565126146,0.14983047,1163.0,1159.7,1.174]
[1761565126348,0.14983047,1163.0,1159.8,0.54379214]
[1761565126548,0.14983047,1163.0,1159.7,1.174]
[1761565126549,0.14983047,1163.0,1159.9,0.54379214]
[1761565126750,0.14983047,1163.0,1159.7,1.174]
[1761565126949,0.14983047,1163.0,1159.8,0.54378409]
[1761565127246,0.14983047,1163.0,1159.9,0.54378409]
[1761565127448,0.14983047,1163.0,1160.0,0.54378409]
[1761565127645,0.14983047,1163.0,1159.7,1.174]
[1761565127949,0.14983047,1163.0,1159.8,0.54368153]
[1761565128146,0.14983047,1163.0,1159.9,0.54368153]
[1761565128347,0.14983047,1163.0,1160.0,0.54368153]
[1761565128545,0.14983047,1163.0,1159.7,1.174]
[1761565128749,0.14983047,1163.0,1159.8,0.54373797]
[1761565128947,0.14983047,1163.0,1159.9,0.54373797]
[1761565129147,0.14983047,1163.0,1160.0,0.54373797]
[1761565129445,0.14983047,1163.0,1159.7,1.174]
[1761565129649,0.14983047,1163.0,1159.8,0.54383784]
[1761565129950,0.14983047,1163.0,1159.9,0.54383784]
[1761565130148,0.14983047,1163.0,1160.0,0.54383784]
[1761565130450,0.14983047,1163.0,1159.7,1.174]
[1761565130650,0.14983047,1163.0,1159.8,0.54397432]
[1761565130846,0.14983047,1163.0,1159.9,0.54397432]
[1761565131050,0.14983047,1163.0,1160.0,0.54397432]
[1761565131248,0.14983047,1163.0,1159.7,1.174]
[1761565131451,0.14983047,1163.0,1159.8,0.54413572]
[1761565131647,2.1456881,1165.0,1159.9,0.54413572]
[1761565131851,0.14978211,1163.1,1160.0,0.54413572]
[1761565132050,0.14978211,1163.1,1160.1,0.54413572]
[1761565132250,2.1456881,1165.2,1160.2,0.54413572]
[1761565132452,0.14976599,1163.1,1160.3,0.54408835]
[1761565132747,2.1456881,1165.5,1159.7,1.174]
[1761565132951,2.1456881,1165.5,1159.8,0.54407663]
[1761565132952,0.14974215,1163.2,1159.8,0.54407663]
[1761565133147,0.14974215,1163.2,1159.7,1.174]
[1761565133148,0.14974215,1163.2,1159.9,0.54407663]
[1761565133352,2.1456881,1165.5,1160.0,0.54407663]
[1761565133554,0.1497705,1163.0,1160.1,0.54407663]
[1761565133853,2.1456881,1165.5,1160.2,0.54407663]
[1761565134052,2.1456881,1165.5,1160.3,0.54407663]
[1761565134247,0.14976083,1163.0,1159.7,1.174]
[1761565134450,2.1456881,1163.9,1159.8,0.54493337]
[1761565134647,2.1456881,1163.9,1159.9,0.54493337]
[1761565134951,0.14978017,1162.9,1160.0,0.54493337]
[1761565135152,0.14978017,1162.9,1159.7,1.174]
[1761565135347,0.14978017,1162.9,1159.8,0.54553431]
[1761565135551,0.14978017,1162.9,1159.7,1.174]
[1761565135849,0.14978017,1162.9,1159.8,0.54553481]
[1761565136049,0.14978017,1162.9,1159.7,1.174]
[1761565136247,0.14978017,1162.9,1159.8,0.54591774]
[1761565136449,0.14978017,1162.9,1159.9,0.54591774]
[1761565136654,0.14978017,1162.9,1159.7,1.174]
[1761565136855,0.14978017,1162.9,1159.8,0.54598213]
[1761565137054,0.14978017,1162.9,1159.9,0.54598213]
[1761565137253,0.14978017,1162.9,1159.7,1.174]
[1761565137455,0.14978017,1162.9,1159.8,0.54655333]
[1761565137655,0.14978017,1162.9,1159.7,1.174]
[1761565139158,0.14978017,1162.9,1159.8,0.54761959]
[1761565139361,0.14978017,1162.9,1159.7,1.174]
[1761565139660,0.14978017,1162.9,1159.8,0.54759543]
[1761565139857,0.14978017,1162.9,1159.7,1.174]
[1761565140056,0.14978017,1162.9,1159.8,0.54760761]
[1761565140258,0.14978017,1162.9,1159.7,1.174]
[1761565140461,0.14978017,1162.9,1159.8,0.54752694]
[1761565140658,0.14978017,1162.9,1159.9,0.54752694]
[1761565140961,0.14978017,1162.9,1159.7,1.174]
[1761565141161,0.14978017,1162.9,1159.8,0.5477087]
[1761565141358,0.14978017,1162.9,1159.9,0.5477087]
[1761565141559,2.1456881,1163.0,1160.0,0.5477087]
[1761565141762,2.1456881,1163.0,1160.1,0.5477087]
[1761565141959,0.14983886,1163.2,1160.2,0.5477087]
[1761565142258,0.14983886,1163.2,1160.3,0.5477087]
[1761565142461,0.14983886,1163.2,1159.7,1.174]
[1761565142658,0.14983886,1163.2,1159.8,0.54892419]
[1761565142859,0.14983886,1163.2,1159.9,0.54892419]
[1761565143059,0.14983886,1163.2,1160.0,1.18938014]
[1761565143258,0.14983886,1163.2,1160.1,0.54892419]
[1761565143458,0.14983886,1163.2,1160.2,0.54892419]
[1761565143763,0.14983886,1163.2,1160.3,0.54892419]
[1761565143959,0.14983886,1163.2,1160.4,0.54892419]
[1761565144263,0.14983886,1163.2,1159.7,1.81445595]
[1761565144463,0.14983886,1163.2,1159.8,0.55047807]
[1761565144659,0.14983886,1163.2,1159.9,0.55047807]
[1761565144859,0.14983886,1163.2,1160.0,0.55047807]
[1761565145064,0.14983886,1163.2,1160.1,0.55047807]
[1761565145361,0.14983886,1163.2,1160.2,0.55047807]
[1761565145561,0.14983886,1163.2,1160.3,0.55047807]
[1761565145764,0.14983886,1163.2,1160.4,0.55047807]
[1761565145964,0.14983886,1163.2,1159.7,1.174]
[1761565146159,0.14983886,1163.2,1159.8,0.55058862]
[1761565146363,0.14983886,1163.2,1159.9,0.55058862]
[1761565146561,0.14983886,1163.2,1160.0,0.55058862]
[1761565146761,0.14983886,1163.2,1160.1,0.55058862]
[1761565146960,0.14983886,1163.2,1159.7,1.81445595]
[1761565146961,0.14983886,1163.2,1160.2,0.55058862]
[1761565147165,0.14983886,1163.2,1160.3,0.55058862]
[1761565147362,0.14983886,1163.2,1160.4,0.55058862]
[1761565147561,0.14983886,1163.2,1159.6,0.64045595]
[1761565147763,0.14983886,1163.2,1159.7,0.55054058]
[1761565148065,0.14983886,1163.2,1157.1,2.1648084]
[1761565148066,0.14983886,1163.2,1159.8,1.19099653]
[1761565148365,0.14983886,1163.2,1159.9,0.55054058]
[1761565148564,0.14983886,1163.2,1160.0,0.55054058]
[1761565148765,0.14983886,1163.2,1160.1,0.55054058]
[1761565148968,2.1456881,1164.4,1160.2,0.55054058]
[1761565149167,0.1497647,1163.4,1160.3,0.55054058]
[1761565149369,0.1497647,1163.4,1160.4,0.55054058]
[1761565149663,0.1497647,1163.4,1160.5,0.55054058]
[1761565149867,0.1497647,1163.4,1159.8,0.64045595]
[1761565150169,0.1497647,1163.4,1159.9,0.55058547]
[1761565150366,0.1497647,1163.4,1160.0,0.55058547]
[1761565150570,0.1497647,1163.4,1160.1,2.10658547]
[1761565150766,0.1497647,1163.4,1160.2,0.55058547]
[1761565151067,0.1497647,1163.4,1160.3,0.55058547]
[1761565151367,0.1497647,1163.4,1160.4,0.55058547]
[1761565151565,0.1497647,1163.4,1160.5,0.55058547]
[1761565151769,0.1497647,1163.4,1160.1,1.556]
[1761565151969,0.1497647,1163.4,1160.2,0.55078918]
[1761565152170,0.1497647,1163.4,1160.3,0.55078918]
[1761565152372,0.1497647,1163.4,1160.4,0.55078918]
[1761565152570,0.1497647,1163.4,1160.5,0.55078918]
[1761565152872,0.1497647,1163.4,1160.6,0.55078918]
[1761565153070,0.1497647,1163.4,1160.1,1.556]
[1761565153369,0.1497647,1163.4,1160.2,0.55083848]
[1761565153568,0.1497647,1163.4,1160.3,0.55083848]
[1761565153770,0.1497647,1163.4,1160.4,0.55083848]
[1761565153970,0.1497647,1163.4,1160.5,0.55083848]
[1761565154170,0.1497647,1163.4,1160.6,0.55083848]
[1761565154373,0.1497647,1163.4,1160.1,1.556]
[1761565154570,0.1497647,1163.4,1160.2,0.55077848]
[1761565154774,0.1497647,1163.4,1160.3,0.55077848]
[1761565154970,0.1497647,1163.4,1160.4,0.55077848]
[1761565155269,0.1497647,1163.4,1160.5,0.55077848]
[1761565155473,0.1497647,1163.4,1160.6,0.55077848]
[1761565155770,0.1497647,1163.4,1160.1,1.556]
[1761565155973,0.1497647,1163.4,1160.2,0.55079423]
[1761565156174,0.1497647,1163.4,1160.3,0.55079423]
[1761565156370,0.1497647,1163.4,1160.1,1.556]
[1761565156371,0.1497647,1163.4,1160.4,0.55079423]
[1761565156670,0.1497647,1163.4,1160.5,0.55079423]
[1761565156878,0.1497647,1163.4,1160.6,0.55079423]
[1761565157174,0.1497647,1163.4,1160.1,1.556]
[1761565157373,0.1497647,1163.4,1160.2,0.55074899]
[1761565157672,0.1497647,1163.4,1160.3,0.55074899]
[1761565157975,0.1497647,1163.4,1160.1,1.556]
[1761565157976,0.1497647,1163.4,1160.4,0.55074899]
[1761565158175,0.1497647,1163.4,1160.5,0.55074899]
[1761565158373,0.1497647,1163.4,1160.1,1.556]
[1761565158574,0.1497647,1163.4,1160.2,0.5507266]
[1761565158778,0.1497647,1163.4,1160.3,0.5507266]
[1761565158978,0.1497647,1163.4,1160.4,0.5507266]
[1761565159279,2.1456881,1164.3,1160.5,0.5507266]
[1761565159477,2.1456881,1164.3,1160.6,0.5507266]
[1761565159775,0.14975181,1163.6,1160.7,0.5507266]
[1761565159975,0.14975181,1163.6,1160.2,0.64045595]
[1761565159976,0.14975181,1163.6,1160.8,0.5507266]
[1761565160176,0.14975181,1163.6,1160.2,0.64045595]
[1761565160377,0.14975181,1163.6,1160.3,0.54997029]
[1761565160582,2.1456881,1164.3,1160.4,0.54997029]
[1761565160781,2.1456881,1164.3,1160.5,0.54997029]
[1761565160981,0.14974859,1163.7,1160.6,0.54997029]
[1761565161278,0.14974859,1163.7,1160.7,0.54997029]
[1761565161478,0.14974859,1163.7,1160.8,0.54997029]
[1761565161678,0.14974859,1163.7,1160.2,0.64045595]
[1761565161878,0.14974859,1163.7,1160.3,0.54978952]
[1761565162078,0.14974859,1163.7,1160.4,0.54978952]
[1761565162383,0.14974859,1163.7,1160.5,0.54978952]
[1761565162682,0.14974859,1163.7,1160.1,2.19645595]
[1761565162683,0.14974859,1163.7,1160.6,0.54978952]
[1761565162880,0.14974859,1163.7,1160.7,0.54978952]
[1761565163179,0.14974859,1163.7,1160.8,0.54978952]
[1761565163378,0.14974859,1163.7,1160.1,0.64045595]
[1761565163578,0.14974859,1163.7,1160.2,0.54955912]
[1761565163782,0.14974859,1163.7,1160.3,0.54955912]
[1761565163979,0.14974859,1163.7,1160.4,0.54955912]
[1761565164278,0.14974859,1163.7,1160.5,0.54955912]
[1761565164481,0.14974859,1163.7,1160.6,0.54955912]
[1761565164684,0.14974859,1163.7,1160.7,0.54955912]
[1761565164981,0.14974859,1163.7,1160.8,0.54955912]
[1761565165181,0.14974859,1163.7,1160.1,0.64045595]
[1761565165482,0.14974859,1163.7,1160.2,1.71649862]
[1761565165781,0.14974859,1163.7,1160.3,0.54949862]
[1761565165984,0.14974859,1163.7,1160.4,0.54949862]
[1761565166284,0.14974859,1163.7,1160.5,0.54949862]
[1761565166484,0.14974859,1163.7,1160.6,0.54949862]
[1761565166685,0.14974859,1163.7,1160.7,0.54949862]
[1761565166883,0.14974859,1163.7,1160.8,0.54949862]
[1761565167083,0.14974859,1163.7,1160.2,1.167]
[1761565167281,0.14974859,1163.7,1160.3,0.54935067]
[1761565167484,0.14974859,1163.7,1160.4,0.54935067]
[1761565167781,0.14974859,1163.7,1160.5,0.54935067]
[1761565167982,0.14974859,1163.7,1160.6,0.54935067]
[1761565168184,0.14974859,1163.7,1160.7,0.54935067]
[1761565168382,0.14974859,1163.7,1160.8,0.54935067]
[1761565168582,0.14974859,1163.7,1160.9,0.54935067]
[1761565168784,0.14974859,1163.7,1160.2,1.167]
[1761565168983,0.14974859,1163.7,1160.3,0.54940686]
[1761565169184,0.14974859,1163.7,1160.4,0.54940686]
[1761565169384,0.14974859,1163.7,1160.5,0.54940686]
[1761565169587,0.14974859,1163.7,1160.6,0.54940686]
[1761565169884,0.14974859,1163.7,1160.7,0.54940686]
[1761565170083,0.14974859,1163.7,1160.8,0.54940686]
[1761565170287,0.14974859,1163.7,1160.9,0.54940686]
[1761565170487,0.14974859,1163.7,1160.2,1.167]
[1761565170689,0.14974859,1163.7,1160.3,0.54935177]
[1761565170985,0.14974859,1163.7,1160.4,0.54935177]
[1761565171189,0.14974859,1163.7,1160.5,0.54935177]
[1761565171389,0.14974859,1163.7,1160.6,0.54935177]
[1761565171590,0.14974859,1163.7,1160.7,0.54935177]
[1761565171790,0.14974859,1163.7,1160.2,1.167]
[1761565172091,0.14974859,1163.7,1160.3,0.54923214]
[1761565172391,2.1456881,1163.0,1160.4,0.54923214]
[1761565172586,2.1456881,1163.0,1160.2,1.167]
[1761565172787,2.1456881,1163.2,1160.2,1.167]
[1761565173691,2.1456881,1163.2,1160.3,0.54995244]
[1761565173891,2.1456881,1163.3,1160.2,1.167]
[1761565174091,2.1456881,1163.3,1160.3,0.54985018]
[1761565174386,2.1456881,1163.1,1160.2,1.167]
[1761565174592,2.1456881,1163.1,1160.3,0.54980716]
[1761565174888,2.1456881,1163.1,1160.2,1.167]
[1761565175189,2.1456881,1163.1,1160.3,0.54947055]
[1761565175387,2.1456881,1163.1,1160.2,1.167]
[1761565175591,2.1456881,1163.1,1160.3,0.54956412]
[1761565175788,2.1456881,1163.1,1160.2,1.167]
[1761565175992,2.1456881,1163.1,1160.3,0.54970884]
[1761565176289,2.1456881,1163.1,1160.4,0.54970884]
[1761565176488,5.1496515,1163.6,1160.2,1.167]
[1761565176689,5.1496515,1163.6,1160.3,0.54979971]
[1761565176893,5.1496515,1163.6,1160.4,0.54979971]
[1761565177091,2.1456881,1163.6,1160.2,1.167]
[1761565177390,2.1456881,1163.6,1160.3,0.54983489]
[1761565177589,2.1456881,1163.6,1160.4,0.54983489]
[1761565177794,2.1456881,1163.6,1160.2,1.167]
[1761565177992,2.29543669,1163.7,1160.3,0.5498746]
[1761565178294,2.29543669,1163.7,1160.4,0.5498746]
[1761565178496,2.29543669,1163.7,1160.5,0.5498746]
[1761565178792,2.29543669,1163.7,1160.2,1.167]
[1761565178990,0.14974859,1163.7,1160.3,0.54991236]
[1761565179192,0.14974859,1163.7,1160.4,0.54991236]
[1761565179391,0.14974859,1163.7,1160.5,0.54991236]
[1761565179596,0.14974859,1163.7,1160.6,0.54991236]
[1761565179895,0.14974859,1163.7,1160.2,1.167]
[1761565180191,0.14974859,1163.7,1160.3,0.54985978]
[1761565180395,0.14974859,1163.7,1160.4,0.54985978]
[1761565180596,0.14974859,1163.7,1160.5,0.54985978]
[1761565180891,0.14974859,1163.7,1160.6,0.54985978]
[1761565181096,2.1456881,1163.1,1160.3,0.64045595]
[1761565181294,2.1456881,1163.1,1160.4,0.54941446]
[1761565181494,3.0039634,1163.5,1160.5,0.54941446]
[1761565181694,3.0039634,1163.5,1160.6,0.54941446]
[1761565181892,3.0039634,1163.5,1160.7,0.54941446]
[1761565182092,0.14974859,1163.7,1160.8,0.54941446]
[1761565182291,0.14974859,1163.7,1160.9,0.54941446]
[1761565182497,0.14974859,1163.7,1161.0,0.54941446]
[1761565182791,0.14974859,1163.7,1160.4,0.64045595]
[1761565182996,0.14974859,1163.7,1160.5,0.5490175]
[1761565183194,0.14974859,1163.7,1160.6,0.5490175]
[1761565183497,0.14974859,1163.7,1160.7,0.5490175]
[1761565183691,0.14974859,1163.7,1160.8,0.5490175]
[1761565183996,0.14974859,1163.7,1160.9,0.5490175]
[1761565184196,0.14974859,1163.7,1160.4,0.64045595]
[1761565184397,0.14974859,1163.7,1160.5,0.54874097]
[1761565184594,0.14974859,1163.7,1160.6,0.54874097]
[1761565184897,0.14974859,1163.7,1160.7,0.54874097]
[1761565185197,0.14974859,1163.7,1160.8,0.54874097]
[1761565185397,0.14974859,1163.7,1160.9,0.54874097]
[1761565185598,0.14974859,1163.7,1161.0,0.54874097]
[1761565185894,0.14974859,1163.7,1160.4,0.64045595]
[1761565186099,0.14974859,1163.7,1160.5,0.54874512]
[1761565186397,0.14974859,1163.7,1160.6,0.54874512]
[1761565186600,2.1456881,1163.1,1160.7,0.54874512]
[1761565186894,2.1456881,1163.1,1160.8,0.54874512]
[1761565187099,2.1456881,1163.1,1160.4,0.64045595]
[1761565187299,2.1456881,1163.1,1160.5,1.18935858]
[1761565187499,2.1456881,1163.1,1160.6,0.54890263]
[1761565187694,3.0039634,1163.5,1160.7,0.54890263]
[1761565187899,3.0039634,1163.5,1160.2,1.167]
[1761565187900,3.0039634,1163.5,1160.8,0.54890263]
[1761565188196,3.0039634,1163.5,1160.9,0.54890263]
[1761565188398,0.14974859,1163.7,1160.3,0.64045595]
[1761565188601,0.14974859,1163.7,1160.4,0.54880359]
[1761565188797,0.14974859,1163.7,1160.5,0.54880359]
[1761565189097,0.14974859,1163.7,1160.6,0.54880359]
[1761565189297,0.14974859,1163.7,1160.7,0.54880359]
[1761565189503,0.14974859,1163.7,1160.8,0.54880359]
[1761565189700,0.14974859,1163.7,1160.9,0.54880359]
[1761565189897,0.14974859,1163.7,1161.0,0.54880359]
[1761565190198,0.14974859,1163.7,1160.3,0.64045595]
[1761565190199,2.1456881,1164.9,1160.2,1.80745595]
[1761565190502,0.14970156,1163.8,1160.3,0.54895974]
[1761565190801,0.14970156,1163.8,1160.4,0.54895974]
[1761565190998,0.14970156,1163.8,1160.5,0.54895974]
[1761565191202,0.14970156,1163.8,1160.2,1.80745595]
[1761565191203,0.14970156,1163.8,1160.6,0.54895974]
[1761565191398,0.14970156,1163.8,1160.7,0.54895974]
[1761565191601,0.14970156,1163.8,1160.2,1.80745595]
[1761565191602,0.14970156,1163.8,1160.8,0.54895974]
[1761565191798,0.14970156,1163.8,1160.9,0.54895974]
[1761565192102,0.14970156,1163.8,1161.0,0.54895974]
[1761565192302,0.14970156,1163.8,1160.2,1.80745595]
[1761565192500,0.14970156,1163.8,1160.3,0.54887261]
[1761565192804,0.14970156,1163.8,1160.4,0.54887261]
[1761565193002,0.14970156,1163.8,1160.5,0.54887261]
[1761565193205,2.1456881,1165.2,1160.6,0.54887261]
[1761565193409,2.1456881,1163.7,1160.7,0.54887261]
[1761565193707,0.14969384,1164.0,1160.8,1.18932856]
[1761565193904,2.1456881,1164.9,1160.9,0.54887261]
[1761565194105,0.14972604,1164.2,1161.0,0.54887261]
[1761565194303,0.14972604,1164.2,1161.1,0.54887261]
[1761565194502,0.14972604,1164.2,1161.2,0.54887261]
[1761565194704,0.14972604,1164.2,1161.3,0.54887261]
[1761565194904,0.14972604,1164.2,1160.9,0.64045595]
[1761565195103,0.14972604,1164.2,1161.0,0.54805787]
[1761565195404,2.1456881,1164.1,1161.1,0.54805787]
[1761565195702,2.1456881,1164.1,1161.2,0.54805787]
[1761565196003,0.14967581,1164.5,1161.3,0.54805787]
[1761565196205,2.1456881,1164.6,1161.4,0.54805787]
[1761565196406,3.0039634,1165.2,1161.5,0.54805787]
[1761565196607,0.14964427,1164.7,1161.6,0.54805787]
[1761565196807,0.14964427,1164.7,1160.9,0.64045595]
[1761565196808,0.14964427,1164.7,1161.0,0.64045595]
[1761565197008,2.1456881,1164.4,1161.2,0.64045595]
[1761565197209,2.1456881,1164.4,1161.3,0.54743303]
[1761565197407,2.1456881,1164.7,1161.4,0.54743303]
[1761565197609,0.14965843,1164.6,1161.5,0.54743303]
[1761565197813,0.14965843,1164.6,1161.6,0.54743303]
[1761565198012,0.14965843,1164.6,1161.1,0.64045595]
[1761565198311,0.14965843,1164.6,1161.2,0.54723453]
[1761565198510,0.14965843,1164.6,1161.3,0.54723453]
[1761565198711,5.1496515,1165.3,1161.4,0.54723453]
[1761565198913,0.1496121,1164.8,1161.5,0.54723453]
[1761565199112,0.1496121,1164.8,1161.6,0.54723453]
[1761565199412,0.1496121,1164.8,1161.7,1.71623453]
[1761565199613,0.1496121,1164.8,1161.8,0.54723453]
[1761565199916,0.1496121,1164.8,1161.7,1.169]
[1761565200118,0.1496121,1164.8,1161.8,0.54674424]
[1761565200317,0.1496121,1164.8,1161.7,1.169]
[1761565200516,0.1496121,1164.8,1161.8,0.54669914]
[1761565200813,0.1496121,1164.8,1161.7,1.169]
[1761565201018,2.1456881,1165.6,1161.8,0.5466888]
[1761565201216,2.1456881,1165.6,1161.7,1.169]
[1761565201217,2.1456881,1165.5,1161.9,0.5466888]
[1761565201520,0.14956902,1165.1,1162.0,0.5466888]
[1761565201720,2.1456881,1165.9,1162.1,0.5466888]
[1761565201919,0.14955167,1165.4,1162.2,0.5466888]
[1761565202120,0.14955167,1165.4,1161.7,1.169]
[1761565202121,0.14955167,1165.4,1162.3,0.5466888]
[1761565202315,0.14955167,1165.4,1161.7,1.80945595]
[1761565202520,0.14955167,1165.4,1161.8,0.54488695]
[1761565202816,0.14955167,1165.4,1161.9,0.54488695]
[1761565203014,0.14955167,1165.4,1162.0,0.54488695]
[1761565203216,0.14955167,1165.4,1162.1,0.54488695]
[1761565203416,0.14955167,1165.4,1162.2,0.54488695]
[1761565203620,0.14955167,1165.4,1161.7,1.169]
[1761565203820,0.14955167,1165.4,1161.8,0.54445901]
[1761565204119,0.14955167,1165.4,1161.9,0.54445901]
[1761565204319,0.14955167,1165.4,1162.0,0.54445901]
[1761565204516,2.1456881,1165.6,1162.1,0.54445901]
[1761565204819,3.0039634,1166.0,1162.2,0.54445901]
[1761565205023,0.14947523,1165.8,1162.3,0.54445901]
[1761565205220,0.14947523,1165.8,1162.4,0.54445901]
[1761565205421,0.14947523,1165.8,1162.5,0.54445901]
[1761565205716,0.14947523,1165.8,1162.6,0.54445901]
[1761565205921,2.1456881,1166.8,1162.7,1.18491496]
[1761565206219,0.1494072,1166.3,1162.9,0.64045595]
[1761565206418,2.1456881,1167.2,1163.0,0.54445901]
[1761565206616,0.14939309,1166.8,1163.0,1.18491496]
[1761565206921,0.14939309,1166.8,1163.1,0.54445901]
[1761565207121,0.14939309,1166.8,1163.2,0.54445901]
[1761565207419,0.14939309,1166.8,1163.3,0.54445901]
[1761565207621,0.14939309,1166.8,1163.4,0.54445901]
[1761565207817,0.14939309,1166.8,1162.9,0.64045595]
[1761565208022,0.14939309,1166.8,1163.0,0.53912114]
[1761565208218,2.1456881,1168.1,1163.1,0.53912114]
[1761565208421,2.1456881,1170.0,1163.2,0.53912114]
[1761565208617,0.14936616,1166.6,1163.3,0.53912114]
[1761565208822,2.1456881,1170.0,1163.4,0.53912114]
[1761565209019,2.1456881,1168.3,1162.8,0.64045595]
[1761565209321,2.1456881,1168.3,1162.9,0.5382523]
[1761565209524,2.1456881,1168.6,1163.0,0.5382523]
[1761565209717,0.14935975,1167.0,1163.1,0.5382523]
[1761565209922,0.14935975,1167.0,1161.7,1.169]
[1761565209923,2.1456881,1167.8,1162.6,0.64045595]
[1761565210223,2.1456881,1167.8,1162.3,0.86592337]
[1761565210224,0.14937385,1166.1,1162.7,0.53792179]
[1761565210423,0.14937385,1166.1,1162.8,0.53792179]
[1761565210621,2.1456881,1167.1,1162.5,0.64045595]
[1761565210824,2.1456881,1167.1,1162.1,1.298885]
[1761565210825,0.14941233,1166.0,1162.6,0.53759224]
[1761565211025,0.14941233,1166.0,1162.7,0.53759224]
[1761565211325,0.14941233,1166.0,1162.8,0.53759224]
[1761565211521,0.14941233,1166.0,1162.9,0.53759224]
[1761565211823,0.14941233,1166.0,1162.3,0.64045595]
[1761565212021,0.14941233,1166.0,1162.4,1.17777013]
[1761565212220,0.14941233,1166.0,1162.5,0.53731418]
[1761565212520,0.14941233,1166.0,1162.6,0.53731418]
[1761565212720,0.14941233,1166.0,1162.7,0.53731418]
[1761565212925,0.14941233,1166.0,1162.2,0.64045595]
[1761565213221,0.14941233,1166.0,1162.3,0.53698449]
[1761565213521,0.14941233,1166.0,1162.4,0.53698449]
[1761565213725,0.14941233,1166.0,1162.5,0.53698449]
[1761565213923,0.14941233,1166.0,1162.6,0.53698449]
[1761565214123,0.14941233,1166.0,1162.7,0.53698449]
[1761565214424,0.14941233,1166.0,1162.2,0.64045595]
[1761565214625,0.14941233,1166.0,1162.3,0.53622844]
[1761565214823,0.14941233,1166.0,1162.4,0.53622844]